[Event "Titled Tuesday Blitz December 06 Early 2022"]
[White "Donskov, Anatoly"]
[Black "Kazakouski, Valery"]
[WhiteFideId "24143413"]
[BlackFideId "13507443"]
[WhiteElo "2219"]
[BlackElo "2516"]
[Result "0-1"]
[Round "01"]
[TimeControl "180+1"]
[Date "2022.12.07"]
[WhiteClock "0:00:02"]
[BlackClock "0:00:08"]

1. e4 {[%clk 0:02:50]}  e5 {[%clk 0:02:59]} 2. Nf3 {[%clk 0:02:44]}  Nc6 {[%clk 0:02:59]} 3. Bb5 {[%clk 0:02:36]}  a6 {[%clk 0:02:59]} 4. Ba4 {[%clk 0:02:30]}  Nf6 {[%clk 0:02:59]} 5. Qe2 {[%clk 0:02:24]}  Be7 {[%clk 0:02:55]} 6. c3 {[%clk 0:02:15]}  b5 {[%clk 0:02:55]} 7. Bb3 {[%clk 0:02:11]}  d5 {[%clk 0:02:55]} 8. d3 {[%clk 0:02:08]}  O-O {[%clk 0:02:54]} 9. O-O {[%clk 0:02:06]}  Be6 {[%clk 0:02:48]} 10. Rd1 {[%clk 0:01:59]}  h6 {[%clk 0:02:46]} 11. Nbd2 {[%clk 0:01:57]}  Re8 {[%clk 0:02:39]} 12. Nf1 {[%clk 0:01:55]}  Bf8 {[%clk 0:02:36]} 13. Ng3 {[%clk 0:01:52]}  Qd7 {[%clk 0:02:19]} 14. h3 {[%clk 0:01:42]}  Rad8 {[%clk 0:02:18]} 15. Be3 {[%clk 0:01:23]}  g6 {[%clk 0:02:15]} 16. a4 {[%clk 0:01:09]}  Bg7 {[%clk 0:02:15]} 17. axb5 {[%clk 0:01:07]}  axb5 {[%clk 0:02:16]} 18. Nh2 {[%clk 0:00:24]}  d4 {[%clk 0:02:13]} 19. Bxe6 {[%clk 0:00:23]}  Rxe6 {[%clk 0:02:13]} 20. cxd4 {[%clk 0:00:22]}  Nxd4 {[%clk 0:02:14]} 21. Bxd4 {[%clk 0:00:22]}  Qxd4 {[%clk 0:02:15]} 22. Nf3 {[%clk 0:00:23]}  Qb4 {[%clk 0:02:15]} 23. Rac1 {[%clk 0:00:20]}  c5 {[%clk 0:02:14]} 24. Qe3 {[%clk 0:00:20]}  Nd7 {[%clk 0:02:13]} 25. Rc2 {[%clk 0:00:19]}  Ra6 {[%clk 0:02:09]} 26. Rdc1 {[%clk 0:00:19]}  Ra2 {[%clk 0:02:09]} 27. Qe2 {[%clk 0:00:19]}  Rc8 {[%clk 0:01:55]} 28. Nf1 {[%clk 0:00:19]}  Nb6 {[%clk 0:01:34]} 29. Ne3 {[%clk 0:00:19]}  h5 {[%clk 0:01:27]} 30. Qd2 {[%clk 0:00:15]}  Qxd2 {[%clk 0:01:25]} 31. Nxd2 {[%clk 0:00:16]}  Bf8 {[%clk 0:01:23]} 32. Nb3 {[%clk 0:00:16]}  Na4 {[%clk 0:01:22]} 33. Nd5 {[%clk 0:00:13]}  Rxb2 {[%clk 0:01:20]} 34. Rxb2 {[%clk 0:00:13]}  Nxb2 {[%clk 0:01:21]} 35. Nb6 {[%clk 0:00:11]}  Rc7 {[%clk 0:01:12]} 36. Nd5 {[%clk 0:00:11]}  Rc6 {[%clk 0:01:06]} 37. Rc3 {[%clk 0:00:09]}  Kg7 {[%clk 0:00:55]} 38. Kf1 {[%clk 0:00:08]}  Na4 {[%clk 0:00:47]} 39. Rc2 {[%clk 0:00:08]}  c4 {[%clk 0:00:28]} 40. dxc4 {[%clk 0:00:09]}  Rxc4 {[%clk 0:00:27]} 41. Rxc4 {[%clk 0:00:09]}  bxc4 {[%clk 0:00:28]} 42. Nc1 {[%clk 0:00:08]}  Bc5 {[%clk 0:00:24]} 43. Ke2 {[%clk 0:00:07]}  Nb6 {[%clk 0:00:23]} 44. Nc3 {[%clk 0:00:06]}  Kf6 {[%clk 0:00:21]} 45. f3 {[%clk 0:00:05]}  h4 {[%clk 0:00:20]} 46. Kd2 {[%clk 0:00:05]}  Kg5 {[%clk 0:00:18]} 47. N1e2 {[%clk 0:00:05]}  f5 {[%clk 0:00:18]} 48. Kc2 {[%clk 0:00:05]}  Bb4 {[%clk 0:00:17]} 49. Kb2 {[%clk 0:00:04]}  Bc5 {[%clk 0:00:14]} 50. Kc2 {[%clk 0:00:04]}  Nd7 {[%clk 0:00:12]} 51. Na4 {[%clk 0:00:04]}  Bb4 {[%clk 0:00:12]} 52. Nac3 {[%clk 0:00:04]}  Nf8 {[%clk 0:00:11]} 53. Nd5 {[%clk 0:00:05]}  Ba5 {[%clk 0:00:11]} 54. Kc1 {[%clk 0:00:04]}  Ne6 {[%clk 0:00:11]} 55. Kc2 {[%clk 0:00:04]}  Nc5 {[%clk 0:00:12]} 56. Ne7 {[%clk 0:00:03]}  fxe4 {[%clk 0:00:11]} 57. Nc6 {[%clk 0:00:02]}  Be1 {[%clk 0:00:10]} 58. fxe4 {[%clk 0:00:02]}  Kf6 {[%clk 0:00:09]} 59. Nc3 {[%clk 0:00:01]}  Bxc3 {[%clk 0:00:09]} 60. Kxc3 {[%clk 0:00:02]}  Nxe4+ {[%clk 0:00:10]} 61. Kxc4 {[%clk 0:00:03]}  Ke6 {[%clk 0:00:09]} 62. Nb4 {[%clk 0:00:02]}  Nf6 {[%clk 0:00:09]} 63. Kd3 {[%clk 0:00:02]}  Kf5 {[%clk 0:00:09]} 64. Ke3 {[%clk 0:00:03]}  Nh5 {[%clk 0:00:08]} 65. Kf3 {[%clk 0:00:02]}  Nf4 {[%clk 0:00:08]} 66. Nc2 {[%clk 0:00:02]}  e4+ {[%clk 0:00:08]} 67. Kf2 {[%clk 0:00:02]}  Nd5 {[%clk 0:00:09]} 68. Nd4+ {[%clk 0:00:02]}  Ke5 {[%clk 0:00:09]} 69. Nc6+ {[%clk 0:00:02]}  Kf4 {[%clk 0:00:10]} 70. Nd4 {[%clk 0:00:01]}  e3+ {[%clk 0:00:10]} 71. Ke2 {[%clk 0:00:02]}  Kg3 {[%clk 0:00:09]} 72. Ne6 {[%clk 0:00:01]}  Kxg2 {[%clk 0:00:09]} 73. Nf8 {[%clk 0:00:01]}  g5 {[%clk 0:00:08]} 74. Ne6 {[%clk 0:00:02]}  Nf4+ {[%clk 0:00:08]} 0-1


[Site "https://www.chess.com"]

[Event "Titled Tuesday Blitz December 06 Early 2022"]
[White "Dudzinski, Pawel"]
[Black "Sipila, Vilka"]
[WhiteFideId "1117890"]
[BlackFideId "505455"]
[WhiteElo "2099"]
[BlackElo "2348"]
[Result "0-1"]
[Round "01"]
[TimeControl "180+1"]
[Date "2022.12.07"]
[WhiteClock "0:01:22"]
[BlackClock "0:01:51"]

1. e4 {[%clk 0:02:46]}  d6 {[%clk 0:02:48]} 2. Nc3 {[%clk 0:02:32]}  Nf6 {[%clk 0:02:33]} 3. g3 {[%clk 0:01:52]}  g6 {[%clk 0:02:32]} 4. Bg2 {[%clk 0:01:52]}  Bg7 {[%clk 0:02:32]} 5. Nge2 {[%clk 0:01:52]}  O-O {[%clk 0:02:32]} 6. h3 {[%clk 0:01:53]}  c5 {[%clk 0:02:33]} 7. d4 {[%clk 0:01:53]}  cxd4 {[%clk 0:02:33]} 8. Nxd4 {[%clk 0:01:54]}  Nc6 {[%clk 0:02:33]} 9. Be3 {[%clk 0:01:55]}  Bd7 {[%clk 0:02:32]} 10. O-O {[%clk 0:01:54]}  Nxd4 {[%clk 0:02:32]} 11. Bxd4 {[%clk 0:01:54]}  Qc8 {[%clk 0:02:33]} 12. Kh2 {[%clk 0:01:53]}  Qc4 {[%clk 0:02:32]} 13. Ne2 {[%clk 0:01:51]}  Rac8 {[%clk 0:02:28]} 14. c3 {[%clk 0:01:51]}  Bc6 {[%clk 0:02:27]} 15. f3 {[%clk 0:01:49]}  a5 {[%clk 0:02:23]} 16. b3 {[%clk 0:01:48]}  Qa6 {[%clk 0:02:22]} 17. c4 {[%clk 0:01:48]}  Rfd8 {[%clk 0:02:21]} 18. a4 {[%clk 0:01:48]}  e6 {[%clk 0:02:21]} 19. f4 {[%clk 0:01:48]}  e5 {[%clk 0:01:58]} 20. Bb2 {[%clk 0:01:35]}  Bxe4 {[%clk 0:01:56]} 21. Bxe4 {[%clk 0:01:26]}  Nxe4 {[%clk 0:01:56]} 22. f5 {[%clk 0:01:27]}  d5 {[%clk 0:01:55]} 23. cxd5 {[%clk 0:01:25]}  Rc5 {[%clk 0:01:51]} 24. Qd3 {[%clk 0:01:22]}  Qxd3 {[%clk 0:01:51]} 0-1


[Site "https://www.chess.com"]

[Event "Titled Tuesday Blitz December 06 Early 2022"]
[White "Farmani Anosheh, Armin"]
[Black "Maksimovic, Bojan"]
[WhiteFideId "24613240"]
[BlackFideId "14408120"]
[WhiteElo "2289"]
[BlackElo "2462"]
[Result "0-1"]
[Round "01"]
[TimeControl "180+1"]
[Date "2022.12.07"]
[WhiteClock "0:00:01"]
[BlackClock "0:00:08"]

1. e4 {[%clk 0:02:45]}  g6 {[%clk 0:02:50]} 2. d4 {[%clk 0:02:41]}  Bg7 {[%clk 0:02:39]} 3. c4 {[%clk 0:02:38]}  d6 {[%clk 0:02:31]} 4. Nc3 {[%clk 0:02:29]}  Nf6 {[%clk 0:02:05]} 5. f3 {[%clk 0:02:26]}  O-O {[%clk 0:02:05]} 6. Nge2 {[%clk 0:02:24]}  Nbd7 {[%clk 0:02:04]} 7. Be3 {[%clk 0:02:23]}  e5 {[%clk 0:02:04]} 8. Qd2 {[%clk 0:02:22]}  c6 {[%clk 0:02:03]} 9. d5 {[%clk 0:02:22]}  cxd5 {[%clk 0:02:01]} 10. cxd5 {[%clk 0:02:22]}  a6 {[%clk 0:01:59]} 11. Nc1 {[%clk 0:02:07]}  b5 {[%clk 0:01:57]} 12. b4 {[%clk 0:01:59]}  Nb6 {[%clk 0:01:54]} 13. Nb3 {[%clk 0:01:58]}  Bd7 {[%clk 0:01:46]} 14. Na5 {[%clk 0:01:58]}  Rc8 {[%clk 0:01:44]} 15. Rc1 {[%clk 0:01:51]}  Nh5 {[%clk 0:01:38]} 16. Qf2 {[%clk 0:01:46]}  Nc4 {[%clk 0:01:33]} 17. Bxc4 {[%clk 0:01:45]}  bxc4 {[%clk 0:01:33]} 18. O-O {[%clk 0:01:38]}  Nf4 {[%clk 0:01:32]} 19. Qd2 {[%clk 0:00:51]}  Nd3 {[%clk 0:01:30]} 20. Rb1 {[%clk 0:00:52]}  Qc7 {[%clk 0:01:07]} 21. Rfd1 {[%clk 0:00:35]}  f5 {[%clk 0:01:02]} 22. Bg5 {[%clk 0:00:33]}  Nxb4 {[%clk 0:00:58]} 23. Rxb4 {[%clk 0:00:28]}  Qc5+ {[%clk 0:00:55]} 24. Kh1 {[%clk 0:00:13]}  Qxb4 {[%clk 0:00:45]} 25. Nc6 {[%clk 0:00:14]}  Qa3 {[%clk 0:00:29]} 26. Ne7+ {[%clk 0:00:11]}  Kh8 {[%clk 0:00:28]} 27. Nxc8 {[%clk 0:00:12]}  Rxc8 {[%clk 0:00:28]} 28. Be7 {[%clk 0:00:12]}  Re8 {[%clk 0:00:26]} 29. Bh4 {[%clk 0:00:12]}  Rb8 {[%clk 0:00:26]} 30. h3 {[%clk 0:00:11]}  Rb2 {[%clk 0:00:25]} 31. Qc1 {[%clk 0:00:11]}  Qb4 {[%clk 0:00:22]} 32. Be1 {[%clk 0:00:11]}  Qb6 {[%clk 0:00:16]} 33. Rd2 {[%clk 0:00:06]}  Rxd2 {[%clk 0:00:16]} 34. Bxd2 {[%clk 0:00:07]}  h5 {[%clk 0:00:15]} 35. Kh2 {[%clk 0:00:08]}  Kh7 {[%clk 0:00:15]} 36. Bg5 {[%clk 0:00:09]}  Qd4 {[%clk 0:00:14]} 37. Be7 {[%clk 0:00:09]}  Bh6 {[%clk 0:00:14]} 38. Qc2 {[%clk 0:00:09]}  Bf4+ {[%clk 0:00:13]} 39. g3 {[%clk 0:00:09]}  Bd2 {[%clk 0:00:12]} 40. Nd1 {[%clk 0:00:08]}  c3 {[%clk 0:00:10]} 41. Bxd6 {[%clk 0:00:08]}  Ba4 {[%clk 0:00:11]} 42. Bxe5 {[%clk 0:00:06]}  Bxc2 {[%clk 0:00:09]} 43. Bxd4 {[%clk 0:00:05]}  Bxd1 {[%clk 0:00:10]} 44. d6 {[%clk 0:00:04]}  Ba4 {[%clk 0:00:08]} 45. exf5 {[%clk 0:00:01]}  c2 {[%clk 0:00:08]} 0-1


[Site "https://www.chess.com"]

[Event "Titled Tuesday Blitz December 06 Early 2022"]
[White "Firouzja, Alireza"]
[Black "Shuvalov, Evgenij"]
[WhiteFideId "12573981"]
[BlackFideId "4187237"]
[WhiteElo "2904"]
[BlackElo "2049"]
[Result "1-0"]
[Round "01"]
[TimeControl "180+1"]
[Date "2022.12.06"]
[WhiteClock "0:01:09"]
[BlackClock "0:00:06"]

1. d4 {[%clk 0:02:50]}  Nf6 {[%clk 0:02:52]} 2. Nc3 {[%clk 0:02:40]}  e6 {[%clk 0:02:45]} 3. e4 {[%clk 0:02:35]}  d5 {[%clk 0:02:39]} 4. e5 {[%clk 0:02:27]}  Nfd7 {[%clk 0:02:35]} 5. f4 {[%clk 0:02:22]}  c5 {[%clk 0:02:33]} 6. Nf3 {[%clk 0:02:21]}  Nc6 {[%clk 0:02:26]} 7. Be3 {[%clk 0:02:17]}  cxd4 {[%clk 0:02:23]} 8. Nxd4 {[%clk 0:02:17]}  Qb6 {[%clk 0:02:21]} 9. a3 {[%clk 0:02:13]}  Bc5 {[%clk 0:02:01]} 10. Na4 {[%clk 0:02:11]}  Qa5+ {[%clk 0:02:00]} 11. b4 {[%clk 0:02:11]}  Qxa4 {[%clk 0:01:46]} 12. bxc5 {[%clk 0:02:11]}  Nxc5 {[%clk 0:01:25]} 13. Nb5 {[%clk 0:02:02]}  Qa5+ {[%clk 0:01:13]} 14. Bd2 {[%clk 0:02:00]}  Qd8 {[%clk 0:01:10]} 15. Nd6+ {[%clk 0:01:59]}  Kf8 {[%clk 0:01:11]} 16. Be2 {[%clk 0:01:57]}  h5 {[%clk 0:01:00]} 17. O-O {[%clk 0:01:53]}  g6 {[%clk 0:01:00]} 18. Be3 {[%clk 0:01:52]}  b6 {[%clk 0:00:55]} 19. c4 {[%clk 0:01:50]}  dxc4 {[%clk 0:00:51]} 20. Bf3 {[%clk 0:01:48]}  Qc7 {[%clk 0:00:47]} 21. Nb5 {[%clk 0:01:47]}  Qd7 {[%clk 0:00:40]} 22. Qe1 {[%clk 0:01:30]}  Bb7 {[%clk 0:00:26]} 23. Nd6 {[%clk 0:01:23]}  Kg7 {[%clk 0:00:20]} 24. Qh4 {[%clk 0:01:20]}  Qd8 {[%clk 0:00:10]} 25. Qf6+ {[%clk 0:01:10]}  Qxf6 {[%clk 0:00:08]} 26. exf6+ {[%clk 0:01:11]}  Kxf6 {[%clk 0:00:09]} 27. Nxb7 {[%clk 0:01:11]}  Nxb7 {[%clk 0:00:08]} 28. Bxc6 {[%clk 0:01:11]}  Rab8 {[%clk 0:00:09]} 29. Bd4+ {[%clk 0:01:12]}  Ke7 {[%clk 0:00:09]} 30. Bxh8 {[%clk 0:01:12]}  Na5 {[%clk 0:00:09]} 31. Be5 {[%clk 0:01:12]}  Nxc6 {[%clk 0:00:08]} 32. Bxb8 {[%clk 0:01:12]}  Nxb8 {[%clk 0:00:09]} 33. Rfc1 {[%clk 0:01:12]}  b5 {[%clk 0:00:10]} 34. a4 {[%clk 0:01:13]}  a6 {[%clk 0:00:09]} 35. axb5 {[%clk 0:01:13]}  axb5 {[%clk 0:00:10]} 36. Rab1 {[%clk 0:01:14]}  Nc6 {[%clk 0:00:10]} 37. Rxb5 {[%clk 0:01:14]}  Nd4 {[%clk 0:00:10]} 38. Rb7+ {[%clk 0:01:14]}  Kf6 {[%clk 0:00:10]} 39. Rxc4 {[%clk 0:01:14]}  Nf5 {[%clk 0:00:10]} 40. Rcc7 {[%clk 0:01:14]}  Nd6 {[%clk 0:00:10]} 41. Ra7 {[%clk 0:01:14]}  Kf5 {[%clk 0:00:09]} 42. Rxf7+ {[%clk 0:01:14]}  Ke4 {[%clk 0:00:09]} 43. Rf6 {[%clk 0:01:14]}  Nf5 {[%clk 0:00:07]} 44. Rxe6+ {[%clk 0:01:14]}  Kxf4 {[%clk 0:00:08]} 45. Rxg6 {[%clk 0:01:15]}  h4 {[%clk 0:00:07]} 46. Rf7 {[%clk 0:01:15]}  Ke5 {[%clk 0:00:06]} 47. Rg5 {[%clk 0:01:09]} 1-0


[Site "https://www.chess.com"]

[Event "Titled Tuesday Blitz December 06 Early 2022"]
[White "Flis, Pawel"]
[Black "Manukyan, Sargis A."]
[WhiteFideId "1112864"]
[BlackFideId "13303970"]
[WhiteElo "1817"]
[BlackElo "2187"]
[Result "0-1"]
[Round "01"]
[TimeControl "180+1"]
[Date "2022.12.07"]
[WhiteClock "0:00:05"]
[BlackClock "0:00:11"]

1. e4 {[%clk 0:02:42]}  e6 {[%clk 0:02:52]} 2. d4 {[%clk 0:02:33]}  d5 {[%clk 0:02:48]} 3. Nd2 {[%clk 0:02:19]}  Nc6 {[%clk 0:02:41]} 4. Ngf3 {[%clk 0:02:02]}  Nf6 {[%clk 0:02:36]} 5. e5 {[%clk 0:01:59]}  Nd7 {[%clk 0:02:32]} 6. Bd3 {[%clk 0:01:59]}  Nb4 {[%clk 0:02:30]} 7. Be2 {[%clk 0:01:58]}  c5 {[%clk 0:02:27]} 8. c3 {[%clk 0:01:58]}  Nc6 {[%clk 0:02:26]} 9. Bd3 {[%clk 0:01:59]}  Be7 {[%clk 0:02:22]} 10. O-O {[%clk 0:01:57]}  g5 {[%clk 0:02:21]} 11. dxc5 {[%clk 0:01:38]}  g4 {[%clk 0:02:13]} 12. Nd4 {[%clk 0:01:37]}  Ndxe5 {[%clk 0:02:12]} 13. Nxc6 {[%clk 0:01:32]}  bxc6 {[%clk 0:02:08]} 14. Be2 {[%clk 0:01:29]}  h5 {[%clk 0:02:06]} 15. b4 {[%clk 0:01:28]}  Ng6 {[%clk 0:02:03]} 16. Nb3 {[%clk 0:01:25]}  e5 {[%clk 0:02:01]} 17. Re1 {[%clk 0:01:18]}  Be6 {[%clk 0:01:58]} 18. Na5 {[%clk 0:01:17]}  Qd7 {[%clk 0:01:57]} 19. Qa4 {[%clk 0:01:12]}  Rc8 {[%clk 0:01:53]} 20. b5 {[%clk 0:01:08]}  Bxc5 {[%clk 0:01:40]} 21. Nxc6 {[%clk 0:00:50]}  O-O {[%clk 0:01:24]} 22. Ba3 {[%clk 0:00:50]}  Bxa3 {[%clk 0:01:10]} 23. Qxa3 {[%clk 0:00:51]}  Rxc6 {[%clk 0:00:53]} 24. bxc6 {[%clk 0:00:50]}  Qxc6 {[%clk 0:00:54]} 25. Qxa7 {[%clk 0:00:45]}  Qxc3 {[%clk 0:00:52]} 26. Rac1 {[%clk 0:00:43]}  Qb2 {[%clk 0:00:45]} 27. a4 {[%clk 0:00:41]}  Nf4 {[%clk 0:00:42]} 28. Bf1 {[%clk 0:00:40]}  d4 {[%clk 0:00:28]} 29. Qc7 {[%clk 0:00:30]}  f6 {[%clk 0:00:26]} 30. Bc4 {[%clk 0:00:20]}  Bf7 {[%clk 0:00:20]} 31. Bxf7+ {[%clk 0:00:19]}  Rxf7 {[%clk 0:00:21]} 32. Qc2 {[%clk 0:00:16]}  Qb4 {[%clk 0:00:17]} 33. Rb1 {[%clk 0:00:14]}  Qa5 {[%clk 0:00:17]} 34. Qc4 {[%clk 0:00:13]}  Kg7 {[%clk 0:00:16]} 35. Qb5 {[%clk 0:00:10]}  Qd2 {[%clk 0:00:15]} 36. Red1 {[%clk 0:00:09]}  Qc2 {[%clk 0:00:14]} 37. a5 {[%clk 0:00:08]}  Qe4 {[%clk 0:00:14]} 38. Qf1 {[%clk 0:00:05]}  h4 {[%clk 0:00:11]} 39. a6 {[%clk 0:00:05]}  h3 {[%clk 0:00:11]} 0-1


[Site "https://www.chess.com"]

[Event "Titled Tuesday Blitz December 06 Early 2022"]
[White "Gabuzyan, Hovhannes"]
[Black "Omariev, Maksim"]
[WhiteFideId "13303732"]
[BlackFideId "4193423"]
[WhiteElo "2486"]
[BlackElo "2445"]
[Result "1-0"]
[Round "01"]
[TimeControl "180+1"]
[Date "2022.12.07"]
[WhiteClock "0:02:50"]
[BlackClock "0:00:56"]

1. e4 {[%clk 0:03:00]}  c5 {[%clk 0:02:39]} 2. Nc3 {[%clk 0:03:00]}  d6 {[%clk 0:02:37]} 3. f4 {[%clk 0:03:00]}  Nc6 {[%clk 0:02:37]} 4. Nf3 {[%clk 0:03:00]}  g6 {[%clk 0:02:37]} 5. Bc4 {[%clk 0:03:00]}  Bg7 {[%clk 0:02:37]} 6. O-O {[%clk 0:03:00]}  e6 {[%clk 0:02:38]} 7. d4 {[%clk 0:03:01]}  Nxd4 {[%clk 0:02:31]} 8. Be3 {[%clk 0:03:00]}  Nxf3+ {[%clk 0:02:26]} 9. Qxf3 {[%clk 0:03:01]}  Ne7 {[%clk 0:02:25]} 10. f5 {[%clk 0:03:02]}  gxf5 {[%clk 0:02:24]} 11. exf5 {[%clk 0:03:01]}  Nxf5 {[%clk 0:02:24]} 12. g4 {[%clk 0:03:01]}  O-O {[%clk 0:01:12]} 13. gxf5 {[%clk 0:03:01]}  d5 {[%clk 0:01:12]} 14. f6 {[%clk 0:02:56]}  Bxf6 {[%clk 0:01:05]} 15. Qxf6 {[%clk 0:02:56]}  Qxf6 {[%clk 0:01:05]} 16. Rxf6 {[%clk 0:02:56]}  dxc4 {[%clk 0:01:06]} 17. Raf1 {[%clk 0:02:52]}  b6 {[%clk 0:00:56]} 18. Bh6 {[%clk 0:02:50]} 1-0


[Site "https://www.chess.com"]

[Event "Titled Tuesday Blitz December 06 Early 2022"]
[White "Garagulya, Konstantin"]
[Black "Madaminov, Mukhiddin"]
[WhiteFideId "4128931"]
[BlackFideId "14210703"]
[WhiteElo "2329"]
[BlackElo "2333"]
[Result "0-1"]
[Round "01"]
[TimeControl "180+1"]
[Date "2022.12.07"]
[WhiteClock "0:00:01"]
[BlackClock "0:00:34"]

1. d4 {[%clk 0:02:42]}  Nf6 {[%clk 0:02:59]} 2. Nf3 {[%clk 0:02:02]}  e6 {[%clk 0:02:58]} 3. Bg5 {[%clk 0:01:56]}  Be7 {[%clk 0:02:57]} 4. Nbd2 {[%clk 0:01:55]}  d5 {[%clk 0:02:54]} 5. e3 {[%clk 0:01:55]}  c5 {[%clk 0:02:49]} 6. dxc5 {[%clk 0:01:55]}  Bxc5 {[%clk 0:02:43]} 7. c4 {[%clk 0:01:55]}  h6 {[%clk 0:02:37]} 8. Bh4 {[%clk 0:01:52]}  Nc6 {[%clk 0:02:34]} 9. a3 {[%clk 0:01:41]}  O-O {[%clk 0:02:24]} 10. Rc1 {[%clk 0:01:40]}  Qe7 {[%clk 0:02:18]} 11. cxd5 {[%clk 0:01:38]}  exd5 {[%clk 0:02:17]} 12. Bxf6 {[%clk 0:01:36]}  gxf6 {[%clk 0:02:15]} 13. Nb3 {[%clk 0:01:35]}  Bb6 {[%clk 0:02:12]} 14. Be2 {[%clk 0:01:35]}  Be6 {[%clk 0:02:00]} 15. O-O {[%clk 0:01:28]}  Rac8 {[%clk 0:01:59]} 16. Nbd4 {[%clk 0:01:27]}  Nxd4 {[%clk 0:01:51]} 17. Nxd4 {[%clk 0:01:25]}  Kg7 {[%clk 0:01:34]} 18. Qd3 {[%clk 0:01:23]}  Rc7 {[%clk 0:01:27]} 19. Bf3 {[%clk 0:00:48]}  Rfc8 {[%clk 0:01:20]} 20. Rxc7 {[%clk 0:00:47]}  Qxc7 {[%clk 0:01:18]} 21. Rd1 {[%clk 0:00:19]}  Qe5 {[%clk 0:01:15]} 22. g3 {[%clk 0:00:19]}  f5 {[%clk 0:01:15]} 23. Kg2 {[%clk 0:00:17]}  Rc4 {[%clk 0:01:15]} 24. Rd2 {[%clk 0:00:15]}  a5 {[%clk 0:01:12]} 25. Ne2 {[%clk 0:00:15]}  a4 {[%clk 0:00:51]} 26. Nf4 {[%clk 0:00:14]}  Ba5 {[%clk 0:00:52]} 27. Rc2 {[%clk 0:00:14]}  b5 {[%clk 0:00:50]} 28. h3 {[%clk 0:00:12]}  Bd8 {[%clk 0:00:45]} 29. Qd1 {[%clk 0:00:12]}  Bf6 {[%clk 0:00:43]} 30. Rd2 {[%clk 0:00:12]}  d4 {[%clk 0:00:41]} 31. exd4 {[%clk 0:00:08]}  Rxd4 {[%clk 0:00:41]} 32. Rxd4 {[%clk 0:00:08]}  Qxd4 {[%clk 0:00:41]} 33. Qe2 {[%clk 0:00:04]}  Bc4 {[%clk 0:00:40]} 34. Qe8 {[%clk 0:00:03]}  Qxb2 {[%clk 0:00:35]} 35. Nh5+ {[%clk 0:00:03]}  Kh7 {[%clk 0:00:36]} 36. Qc8 {[%clk 0:00:01]}  Be6 {[%clk 0:00:34]} 0-1


[Site "https://www.chess.com"]

[Event "Titled Tuesday Blitz December 06 Early 2022"]
[White "Garv Gaur"]
[Black "Zhigalko, Sergei"]
[WhiteFideId "45030839"]
[BlackFideId "13502956"]
[WhiteElo "2056"]
[BlackElo "2662"]
[Result "0-1"]
[Round "01"]
[TimeControl "180+1"]
[Date "2022.12.07"]
[WhiteClock "0:00:04"]
[BlackClock "0:00:31"]

1. d4 {[%clk 0:02:38]}  Nf6 {[%clk 0:02:49]} 2. Nf3 {[%clk 0:02:25]}  e6 {[%clk 0:02:39]} 3. c4 {[%clk 0:02:21]}  b6 {[%clk 0:02:31]} 4. g3 {[%clk 0:02:19]}  Ba6 {[%clk 0:02:24]} 5. b3 {[%clk 0:02:15]}  Bb4+ {[%clk 0:02:20]} 6. Bd2 {[%clk 0:02:13]}  Be7 {[%clk 0:02:20]} 7. Nc3 {[%clk 0:02:08]}  O-O {[%clk 0:02:20]} 8. e4 {[%clk 0:02:07]}  d5 {[%clk 0:02:19]} 9. Bd3 {[%clk 0:02:05]}  c5 {[%clk 0:02:14]} 10. e5 {[%clk 0:02:04]}  Nfd7 {[%clk 0:02:07]} 11. Qc2 {[%clk 0:01:59]}  cxd4 {[%clk 0:01:58]} 12. Ne2 {[%clk 0:01:56]}  h6 {[%clk 0:01:49]} 13. Nexd4 {[%clk 0:01:55]}  Nc5 {[%clk 0:01:49]} 14. Be2 {[%clk 0:01:49]}  dxc4 {[%clk 0:01:43]} 15. Bxc4 {[%clk 0:01:49]}  Bb7 {[%clk 0:01:36]} 16. O-O {[%clk 0:01:43]}  Nc6 {[%clk 0:01:36]} 17. Bc3 {[%clk 0:01:36]}  Nxd4 {[%clk 0:01:30]} 18. Nxd4 {[%clk 0:01:37]}  Qc7 {[%clk 0:01:28]} 19. Nb5 {[%clk 0:01:35]}  Qc6 {[%clk 0:01:27]} 20. f3 {[%clk 0:01:32]}  Rfd8 {[%clk 0:01:27]} 21. Rad1 {[%clk 0:01:27]}  a6 {[%clk 0:01:21]} 22. Nd4 {[%clk 0:01:27]}  Qc7 {[%clk 0:01:22]} 23. Qe2 {[%clk 0:01:26]}  b5 {[%clk 0:01:20]} 24. Bd3 {[%clk 0:01:24]}  Nxd3 {[%clk 0:01:19]} 25. Rxd3 {[%clk 0:01:25]}  Bc5 {[%clk 0:01:13]} 26. Rfd1 {[%clk 0:01:16]}  Rd5 {[%clk 0:01:12]} 27. Kg2 {[%clk 0:01:11]}  Rxe5 {[%clk 0:01:08]} 28. Qd2 {[%clk 0:01:06]}  Rd5 {[%clk 0:01:05]} 29. Ne2 {[%clk 0:01:01]}  Rad8 {[%clk 0:01:02]} 30. Qc2 {[%clk 0:00:58]}  Bf8 {[%clk 0:00:56]} 31. Rxd5 {[%clk 0:00:50]}  Rxd5 {[%clk 0:00:57]} 32. Rxd5 {[%clk 0:00:49]}  Bxd5 {[%clk 0:00:58]} 33. Qd3 {[%clk 0:00:46]}  b4 {[%clk 0:00:43]} 34. Bb2 {[%clk 0:00:45]}  Qa5 {[%clk 0:00:43]} 35. a4 {[%clk 0:00:18]}  bxa3 {[%clk 0:00:42]} 36. Bc3 {[%clk 0:00:18]}  Qb5 {[%clk 0:00:39]} 37. Qd2 {[%clk 0:00:18]}  Qxb3 {[%clk 0:00:38]} 38. Nd4 {[%clk 0:00:18]}  Qa2 {[%clk 0:00:36]} 39. Qxa2 {[%clk 0:00:14]}  Bxa2 {[%clk 0:00:37]} 40. Nc2 {[%clk 0:00:08]}  Bb3 {[%clk 0:00:36]} 41. Na1 {[%clk 0:00:08]}  Bd5 {[%clk 0:00:36]} 42. Nc2 {[%clk 0:00:08]}  a2 {[%clk 0:00:37]} 43. Kf2 {[%clk 0:00:08]}  Bc5+ {[%clk 0:00:37]} 44. Ke2 {[%clk 0:00:08]}  f6 {[%clk 0:00:37]} 45. f4 {[%clk 0:00:07]}  Kf7 {[%clk 0:00:37]} 46. Na1 {[%clk 0:00:07]}  h5 {[%clk 0:00:37]} 47. Nc2 {[%clk 0:00:06]}  Kg6 {[%clk 0:00:37]} 48. h3 {[%clk 0:00:06]}  Bg2 {[%clk 0:00:36]} 49. h4 {[%clk 0:00:06]}  Be4 {[%clk 0:00:36]} 50. Na1 {[%clk 0:00:06]}  Kf5 {[%clk 0:00:34]} 51. Nb3 {[%clk 0:00:06]}  Bb6 {[%clk 0:00:33]} 52. Nd2 {[%clk 0:00:06]}  Bd5 {[%clk 0:00:32]} 53. Nf3 {[%clk 0:00:03]}  Bxf3+ {[%clk 0:00:31]} 54. Kxf3 {[%clk 0:00:04]}  Bc7 {[%clk 0:00:30]} 55. Ba1 {[%clk 0:00:04]}  e5 {[%clk 0:00:30]} 56. Bb2 {[%clk 0:00:04]}  exf4 {[%clk 0:00:31]} 57. gxf4 {[%clk 0:00:04]}  Bxf4 {[%clk 0:00:31]} 0-1


[Site "https://www.chess.com"]